Cogmind - Beta 13 @@@ ROGUE MODE // 2024.05.05 @ 02:28:47 Player: CONM Result: Core destroyed Performance ------------- Evolutions (1) 500 Regions Visited (3) 600 Robots Destroyed (14) 70 Value Destroyed (182) 182 Prototype IDs (0) 0 Alien Tech Used (0) 0 Bonus (0) 0 TOTAL SCORE: 1352 Bonus ------- None Cogmind --------- Core Integrity 0/400 Matter 300/300 Energy 100/100 System Corruption 4% Temperature Cool (0) Movement Rolling (100) Location -9/Mines Parts ------- > --- POWER (1) -------- (None) > --- PROPULSION (3) --- Compact Wheel > --- UTILITY (3) ------ Small Storage Unit Terrain Scan Processor > --- WEAPON (2) ------- Assault Rifle > --- INVENTORY (8) ---- Huge Storage Unit Sensor Array Peak State ------------ > --- POWER ------------ Light Ion Engine > --- PROPULSION ------- Aluminum Leg Improved Aluminum Leg > --- UTILITY ---------- Small Storage Unit Sensor Array Improved Terrain Scanner > --- WEAPON ----------- Assault Rifle Plasma Cutter > --- INVENTORY -------- Compact Wheel Compact Wheel Huge Storage Unit Targeting Computer Assault Rifle [Rating: 12] Favorites ----------- Power Light Ion Engine Engine Light Ion Engine Propulsion Aluminum Leg Leg Aluminum Leg Wheel Compact Wheel Utility Small Storage Unit Device Improved Terrain Scanner Storage Small Storage Unit Processor Terrain Scan Processor Weapon Heavy Hammer Energy Gun EM Pulse Gun Ballistic Gun Assault Rifle Special Weapon Plasma Cutter Impact Weapon Heavy Hammer Build | -11 -10 -9 -9 ------- Run | Yrd Mat Mat Min Slots Evolved 2 | . . 2 . Power . | . . . . Propulsion 1 | . . 1 . Utility 1 | . . 1 . Weapon . | . . . . Parts Attached 20 | 7 1 10 2 Power 3 | 1 1 1 . Engine 3 | 1 1 1 . Core . | . . . . Reactor . | . . . . Propulsion 5 | 2 . 3 . Treads . | . . . . Leg 3 | 2 . 1 . Wheel 2 | . . 2 . Hover . | . . . . Flight . | . . . . Utility 5 | 2 . 2 1 Device 2 | 1 . 1 . Storage 1 | 1 . . . Processor 2 | . . 1 1 Hackware . | . . . . Protection . | . . . . Artifact . | . . . . Weapon 7 | 2 . 4 1 Energy Gun 1 | 1 . . . Energy Cannon . | . . . . Ballistic Gun 4 | 1 . 2 1 Ballistic Cannon . | . . . . Launcher . | . . . . Special Weapon 1 | . . 1 . Impact Weapon 1 | . . 1 . Slashing Weapon . | . . . . Piercing Weapon . | . . . . Special Melee Weapon . | . . . . Unidentified Prototypes . | . . . . Parts Lost 8 | . . 6 2 Power 1 | . . 1 . Propulsion 3 | . . 2 1 Utility 2 | . . 2 . Weapon 2 | . . 1 1 Highest Loss Streak 6 | . . 6 1 To Critical Strikes . | . . . . Average Slot Usage (%) 72 | . 96 77 52 Engine 6 | . 12 8 . Leg 12 | . 26 16 . Wheel 8 | . . . 21 Device 10 | . 14 18 . Storage 11 | . 14 11 11 Processor 2 | . . . 6 Energy Gun 3 | . 14 . . Ballistic Gun 8 | . 14 10 2 Special Weapon 1 | . . 4 . Impact Weapon 6 | . . 6 11 Naked Turns . | . . . . Heaviest Build 15 | 12 14 15 10 Greatest Support 32 | 20 20 32 32 Greatest Overweight (x) 2 | . . 2 . Average Overweight (x) . | . . . . Largest Inventory Capacity 8 | 8 8 8 8 Average Capacity 7 | 7 8 8 8 Most Carried 7 | 4 4 7 3 Average Carried 3 | 2 3 5 2 Final Capacity 8 | 8 8 8 8 Final Carried 4 | 3 4 3 2 Class Distribution -------------------- 100% | Mutant Dominant Class ---------------- Mutant | -10/Materials Mutant | -9/Materials Mutant | -9/Mines Resources | -11 -10 -9 -9 ----------- Run | Yrd Mat Mat Min Matter Collected 374 | 214 61 28 71 Remotely . | . . . . Salvage Created 426 | 81 145 28 172 Parts 10 | 5 4 . 1 Haulers Intercepted . | . . . . Recyclers Shooed . | . . . . Parts Field Recycled . | . . . . Retrieved Matter . | . . . . Parts Self-Destructed . | . . . . Prevented . | . . . . Kills | -11 -10 -9 -9 ------- Run | Yrd Mat Mat Min Combat Hostiles Destroyed 3 | . 3 . . Guns 3 | . 3 . . Classes Destroyed 5 | 1 1 2 1 Worker 3 | . . 1 2 Tunneler 6 | 3 . . 3 Recycler 1 | . . . 1 Watcher 1 | . . 1 . Grunt 3 | . 3 . . Best Kill Streak 2 | 2 2 1 2 Combat Bots Only 2 | . 2 . . Max Kills in Single Turn 1 | 1 1 1 1 Gunslinging . | . . . . Exploded . | . . . . Melee . | . . . . Uniques/NPCs Destroyed . | . . . . Combat | -11 -10 -9 -9 -------- Run | Yrd Mat Mat Min Hostile Shots Fired 155 | . 15 118 22 Missed 52 | . 7 41 4 Damage Taken 1276 | . 138 767 371 Core 400 | . . 276 124 Absorbed by Shields . | . . . . Core Remaining (%) 100 | 100 100 . . Volleys Fired 23 | 8 12 3 . Largest 2 | 2 2 2 . Hottest 60 | 60 60 40 . Shots Fired 46 | 16 24 6 . Gun 43 | 16 24 3 . Cannon . | . . . . Launcher . | . . . . Special 3 | . . 3 . Kinetic 23 | 8 12 3 . Thermal 3 | . . 3 . Explosive . | . . . . Electromagnetic 20 | 8 12 . . Robot Hit Streak 7 | 3 7 . . Robot Miss Streak 2 | 2 2 . . Penetration Max . | . . . . Secondary Targets . | . . . . Shots Hit Robots 34 | 8 17 2 7 Core Hits 13 | 4 8 . 1 Critical Kills . | . . . . Critical Parts Destroyed . | . . . . Critical Strikes . | . . . . Melee Attacks 34 | . . 10 24 Impact 34 | . . 10 24 Slashing . | . . . . Piercing . | . . . . Sneak Attacks 7 | . . 1 6 Combat Hostiles . | . . . . Follow-up Attacks . | . . . . Damage Inflicted 986 | 92 225 155 514 Guns 287 | 92 195 . . Cannons . | . . . . Explosions 30 | . 30 . . Melee 653 | . . 155 498 Ramming 16 | . . . 16 Kinetic 86 | 23 63 . . Thermal 30 | . 30 . . Explosive . | . . . . Electromagnetic 201 | 69 132 . . Impact 653 | . . 155 498 Slashing . | . . . . Piercing . | . . . . Highest Corruption 4 | . . . 4 Average Corruption 3 | . . . 3 Corruption Purged . | . . . . Corruption Blocked . | . . . . Overload Shots . | . . . . Overflow Damage 293 | . . 110 183 Projectiles . | . . . . Explosions . | . . . . Melee 293 | . . 110 183 Knockbacks 5 | . . 2 3 Impact 5 | . . 2 3 Kinetic . | . . . . Secondary . | . . . . Self-Inflicted Damage 43 | . 27 . 16 Shots 1 | . 1 . . Rammed . | . . . . Targets Rammed . | . . . . Kicked . | . . . . Crushed . | . . . . Highest Temperature 141 | 20 141 . . Average Temperature 50 | 13 67 . . Received Heat Transfer 405 | . 69 210 126 Siege Activations . | . . . . Robots Corrupted . | . . . . Combat Hostiles . | . . . . Parts Fried 10 | . 1 1 8 Impact Corruptions 12 | . . 4 8 Robots Melted . | . . . . Combat Hostiles . | . . . . Parts Melted . | . . . . Heat Transferred 100 | . 100 . . Parts Sabotaged . | . . . . Parts Stolen . | . . . . Parts Stripped . | . . . . Power Chain Reactions 1 | . 1 . . Alert | -11 -10 -9 -9 ------- Run | Yrd Mat Mat Min Peak Influence 108 | 15 108 55 46 Initial 45 | . 9 45 1 Average 38 | 5 79 40 19 Maximum Alert Level . | . . . . Low Security (%) 100 | 100 100 100 100 Level 1 . | . . . . Level 2 . | . . . . Level 3 . | . . . . Level 4 . | . . . . Level 5 . | . . . . High Security . | . . . . Max Security . | . . . . Squads Dispatched 2 | . 1 1 . Investigation . | . . . . Extermination . | . . . . Reinforcement 2 | . 1 1 . Assault . | . . . . Garrison . | . . . . Intercept . | . . . . Searches Triggered . | . . . . Construction Impeded . | . . . . Haulers Reinforced . | . . . . Active Scanning Responses . | . . . . Cargo Convoy Interrupts . | . . . . Stealth | -11 -10 -9 -9 --------- Run | Yrd Mat Mat Min Distress Signals 3 | . . 3 . Communications Jammed . | . . . . Distress Signals . | . . . . Times Spotted 32 | . 10 17 5 Peak Tracking Total 15 | . 4 15 3 Tactical Retreats 3 | . . 1 2 Traps | -11 -10 -9 -9 ------- Run | Yrd Mat Mat Min Traps Triggered 1 | . 1 . . Indirectly . | . . . . Trap Hack Attempts . | . . . . Triggered . | . . . . Disarmed . | . . . . Reprogrammed . | . . . . Reused . | . . . . Traps Extracted . | . . . . Installed . | . . . . Triggered . | . . . . Machines | -11 -10 -9 -9 ---------- Run | Yrd Mat Mat Min Machines Disabled 1 | . . 1 . Max in Single Turn 1 | . . 1 . Machines Repaired . | . . . . Machines Dismantled . | . . . . Machines Sabotaged . | . . . . Overloaded Fab Kills . | . . . . Hacking | -11 -10 -9 -9 --------- Run | Yrd Mat Mat Min Machines Accessed 1 | . 1 . . Terminals . | . . . . Fabricators . | . . . . Repair Stations . | . . . . Recycling Units 1 | . 1 . . Scanalyzers . | . . . . Garrison Access . | . . . . Total Hacks 5 | . 5 . . Successful 3 | . 3 . . Failed 2 | . 2 . . Catastrophic . | . . . . Database Lockouts . | . . . . Manual . | . . . . Terminals . | . . . . Fabricators . | . . . . Repair Stations . | . . . . Recycling Units 5 | . 5 . . Scanalyzers . | . . . . Garrison Access . | . . . . Terminal Hacks . | . . . . Fabricator Hacks . | . . . . Repair Station Hacks . | . . . . Recycling Unit Hacks 3 | . 3 . . Recycle Component 1 | . 1 . . Process 1 | . 1 . . Retrieve Matter 1 | . 1 . . Scanalyzer . | . . . . Garrison Access Hacks . | . . . . Unauthorized Hacks . | . . . . Terminals . | . . . . Fabricators . | . . . . Repair Stations . | . . . . Recycling Units . | . . . . Scanalyzers . | . . . . Garrison Access . | . . . . Data Cores Recovered . | . . . . Used . | . . . . Hacking Detections . | . . . . Full Trace Events . | . . . . Feedback Events . | . . . . Feedback Blocked . | . . . . Robot Schematics Acquired . | . . . . Robots Built . | . . . . Authchips . | . . . . Time . | . . . . Total Robot Build Rating . | . . . . Part Schematics Acquired . | . . . . Parts Built . | . . . . Authchips . | . . . . Time . | . . . . Total Part Build Rating . | . . . . Parts Repaired . | . . . . Time . | . . . . Parts Recycled 1 | . 1 . . Recycled Matter 25 | . 25 . . Retrieved Matter 25 | . 25 . . Retrieved Components . | . . . . Parts Scanalyzed . | . . . . Part Schematics Acquired . | . . . . Parts Damaged . | . . . . Bothacking | -11 -10 -9 -9 ------------ Run | Yrd Mat Mat Min Used RIF Installer . | . . . . Robots Hacked . | . . . . Non-combat . | . . . . Combat . | . . . . Robot Hacks Applied . | . . . . Relay Couplers Released . | . . . . Fabnet Peak Effective % . | . . . . Robots Rewired . | . . . . Allies Hacked . | . . . . Hacks Repelled . | . . . . Allies | -11 -10 -9 -9 -------- Run | Yrd Mat Mat Min Total Allies . | . . . . Largest Group . | . . . . Highest-Rated Group . | . . . . Highest-Rated Ally . | . . . . Total Orders . | . . . . Ally Attacks . | . . . . Total Damage . | . . . . Kills . | . . . . Allies Corrupted . | . . . . Allies Melted . | . . . . Intel | -11 -10 -9 -9 ------- Run | Yrd Mat Mat Min Robot Analysis Total . | . . . . Derelict Logs Recovered 1 | . . . 1 Drone Launches . | . . . . Drone Recoveries . | . . . . Exploration | -11 -10 -9 -9 ------------- Run | Yrd Mat Mat Min Turns Passed 1394 | 117 314 463 500 Spaces Moved 992 | 75 224 265 428 Core 17 | 14 . 3 . Treads . | . . . . Legs 543 | 61 224 258 . Wheels 432 | . . 4 428 Hover . | . . . . Flight . | . . . . Fastest Speed 50 | 50 120 100 100 Average Speed 113 | 106 120 131 100 Slowest Speed 190 | 120 120 190 100 Overloaded Moves . | . . . . Propulsion Burnouts . | . . . . Robots Hopped . | . . . . Cave-ins Triggered 1 | . . . 1 Exploration Rate (%) 31 | 5 33 22 65 Regions Visited 3 Branch Regions 1 Pre-discovered Areas 1 | . . . 1 Known Exits Taken . | . . . . Unknown Exits Taken 3 | 1 1 1 . Scrap Searched 1 | . . . 1 Spaces Dug 19 | . . 4 15 Terrain Destroyed 21 | . 2 4 15 Melee 19 | . . 4 15 Projectile . | . . . . AOE 2 | . 2 . . Terrain Rammed 4 | . . . 4 Walls Destroyed . | . . . . Machines Disabled . | . . . . Actions | -11 -10 -9 -9 --------- Run | Yrd Mat Mat Min Total 1150 | 95 247 351 457 Wait 66 | . 10 56 . Move 989 | 74 223 264 428 Hop . | . . . . Pick Up 11 | 6 1 4 . Fast Attach 8 | 4 . 3 1 Attach 8 | 3 . 4 1 Detach . | . . . . Swap 4 | . 1 3 . Drop 4 | . . 4 . Fire 23 | 8 12 3 . Melee 34 | . . 10 24 Ram 3 | . . . 3 Kick . | . . . . Crush . | . . . . Escape Stasis . | . . . . Rewire . | . . . . Trap . | . . . . Miscellaneous . | . . . . Route ------- -11/Scrapyard -10/Materials -9/Materials -9/Mines History --------- Turn | Location | Event 11 | -11/Scrapyard | Discovered new exit (range 14) 118 | -11/Scrapyard | Entered Materials 313 | -10/Materials | Build established: Mutant 408 | -10/Materials | Discovered new exit (range 10) 432 | -10/Materials | Entered another Materials area 432 | -9/Materials | Evolved 2 slots: Propulsion x1, Utility x1 873 | -9/Materials | Discovered new exit (range 7) 887 | -9/Materials | Core integrity fell below 50% 895 | -9/Materials | Entered Mines 911 | -9/Mines | Lost 6 parts (1p2n2u1w) 1102 | -9/Mines | Learned location of Storage (-8) 1206 | -9/Mines | Learned Materials emergency access door positions 1338 | -9/Mines | Core integrity fell below 20% 1390 | -9/Mines | Crushed by falling debris 1395 | -9/Mines | Core destroyed Last Messages --------------- 01361_ U-05 Engineer builds a Wall. 01374_ The unstable cave ceiling collapses. 01374_ G-47 Trooper crushed by falling debris. 01374_ G-47 Trooper destroyed. 01374_ 4 Matter crushed. 01386_ The unstable cave ceiling collapses. 01390_ Crushed by falling debris. [Achievement: Unlikely Earthworm] 01390_ Hvy. Hammer destroyed. 01390_ System corrupted by crushing effect (+3). 01392_ Slammed into Earth. 01392_ Destabilizing: System corrupted (+1). 01392_ Terrain Scan Processor broken. 01392_ Destabilizing: Short circuit. 01393_ Slammed into Earth. 01393_ Destabilizing: Core damaged (-8). 01394_ Slammed into Earth. 01394_ Destabilizing: System interference. 01394_ Assault Rifle temporarily disabled. 01395_ Slammed into Earth. Map ----- +----------------------------------------------------+ | ???????????????????????????????? | | ???????????????????????????????? | | ???????????????????????????????? | | ???????????????????????????????? | | ???????????????????????????????? | | ???????????????????????????????? | | ???????????????????????????????? | | ???????????????????????????????? | | ???????????????????????????????? | | ???????????????????????????????? | | ???????????????????????????????? | | ???????????????????????????????? | | ???????????????????????????????? | | ???????????????????????????????? | | ???????????????????????????????? | | ???????????????????????????????? | | ???????????????????????????????? | | ???????????????????????????????? | | ???????????????????????????????? | | ???????????????????????????????? | | ???????????????????????????????? | | ???????????????????????????????? | | ???????????????????????????????? | | ???????????????????????????????? | | ??????????????????????######???? | | ??????????????????????# #@ #???? | | ??????????????????????#### #???? | | ?????????????????????????###???? | | ?????????????????????????###???? | | ????????? ???????????????# #???? | | ???????# #??????????????# #???? | | ??????## #?????????????# #???? | | #?????# ?????????????# #???? | | #?????# ?????????????# #???? | | #?????# #??????????########?? | | #????## #?????????## ##? | | #???## #????????## #? | | ???## #????????# #? | | ???# #???????## ##? | | #### ##?????## ## ##?? | | ##??### ######??? | | # #### #???????? | | ######## #???????? | | ???##### #???????? | | ???# % #???????? | | ???# ### ## ### #??????? | | ???# #?# #######?## #?????? | | ???# #?# #????????## #????? | | #### #?## #?????????? #???? | | #??####?????????? #???? | +----------------------------------------------------+ Best States ------------- Heat Dissipation 28 Energy Generation 10 Energy Capacity 250 Matter Stores 300 Matter Capacity 300 Sight Range 16 Robot Scan Range 14 Terrain Scan Range 16 Terrain Scan Density 85 Evasion (%) 55 Targeting Accuracy 5 Item Schematics ----------------- None Robot Schematics ------------------ None Fabricated ------------ Nothing Alien Tech Used ----------------- None Achievements -------------- Part-time Excavator Unlikely Earthworm Challenges ------------ None Game ------ Seed SigixWeaponTrap Manual? 0 Play Time 00:17:03 Cumulative 11.6 hours Start 2024.05.05 @ 02:12:36 End 2024.05.05 @ 02:28:47 Sessions 1 Manual Loads 0 Difficulty Rogue Special Mode None Game No. 25 Rogue 25 Adventurer 0 Explorer 0 Win Type - Total 0 Types 0/0/0/0/0/0/0/0/0 Lore% 14 Gallery% 12 Achievement% 12 Wizard Run 0 Options --------- Layout 1 ASCII 0 Keyboard 0 Movement Arrows Keybinds 0 Fullscreen 1 Font 24/Smallcaps Map View 50x40 Zoom Use 0% Tactical HUD 1 Map Filters NONE Filters NONE Steam 1 RUN: 18079c43-d34e-49bd-82d4-f81288c4a458